[Event "Betsys MČR v online bleskovém šachu 2021"]
[Site "Chess.com"]
[Date "2021.04.17"]
[Round "12"]
[White "karimaster100"]
[Black "VitaRasik"]
[Result "1-0"]
[WhiteElo "2340"]
[BlackElo "2616"]
[TimeControl "180+1"]
[EndTime "11:01:12 PDT"]
[Termination "Uživatel karimaster100 zvítězil na čas"]

1. Nf3 {[%clk 0:03:00.9]} 1... g6 {[%clk 0:02:59.1]} 2. g3 {[%clk 0:03:00.5]}
2... Bg7 {[%clk 0:02:58.7]} 3. d4 {[%clk 0:03:00.9]} 3... Nf6 {[%clk 0:02:57.6]}
4. Bg2 {[%clk 0:02:58.3]} 4... O-O {[%clk 0:02:57.3]} 5. O-O {[%clk 0:02:57.7]}
5... d6 {[%clk 0:02:57.5]} 6. c4 {[%clk 0:02:57.5]} 6... Nc6 {[%clk 0:02:57.5]}
7. Nc3 {[%clk 0:02:57.7]} 7... e5 {[%clk 0:02:57.7]} 8. d5 {[%clk 0:02:55.5]}
8... Nb8 {[%clk 0:02:57.5]} 9. e4 {[%clk 0:02:53.7]} 9... a5 {[%clk 0:02:57.4]}
10. Ne1 {[%clk 0:02:52]} 10... Na6 {[%clk 0:02:57.5]} 11. Nd3 {[%clk 0:02:52.4]}
11... Nd7 {[%clk 0:02:57.6]} 12. b3 {[%clk 0:02:40]} 12... f5 {[%clk 0:02:56.5]}
13. Rb1 {[%clk 0:02:38.4]} 13... Nac5 {[%clk 0:02:45.6]} 14. Nxc5 {[%clk
0:02:29.9]} 14... Nxc5 {[%clk 0:02:44.6]} 15. Be3 {[%clk 0:02:12.2]} 15... b6
{[%clk 0:02:43.5]} 16. a3 {[%clk 0:02:10.5]} 16... fxe4 {[%clk 0:02:32.4]} 17.
b4 {[%clk 0:02:03.9]} 17... axb4 {[%clk 0:02:31.5]} 18. axb4 {[%clk 0:02:04.1]}
18... Nd7 {[%clk 0:02:22.4]} 19. Nxe4 {[%clk 0:02:04]} 19... Nf6 {[%clk
0:02:21.4]} 20. Ng5 {[%clk 0:01:53.1]} 20... Qe7 {[%clk 0:02:11.5]} 21. c5
{[%clk 0:01:52.5]} 21... Bf5 {[%clk 0:01:29.7]} 22. Rc1 {[%clk 0:01:50]} 22...
bxc5 {[%clk 0:01:27.2]} 23. bxc5 {[%clk 0:01:49.4]} 23... h6 {[%clk 0:01:26.7]}
24. Ne6 {[%clk 0:01:47.8]} 24... Bxe6 {[%clk 0:01:25.7]} 25. dxe6 {[%clk
0:01:47.9]} 25... e4 {[%clk 0:01:25.9]} 26. cxd6 {[%clk 0:01:46.6]} 26... cxd6
{[%clk 0:01:25]} 27. Qd2 {[%clk 0:01:30.9]} 27... Qxe6 {[%clk 0:01:19.6]} 28.
Bxh6 {[%clk 0:01:26.9]} 28... Ra2 {[%clk 0:01:11.7]} 29. Bh3 {[%clk 0:00:56.6]}
29... Qf7 {[%clk 0:00:51.5]} 30. Qe3 {[%clk 0:00:39.8]} 30... Nd5 {[%clk
0:00:29.1]} 31. Qxe4 {[%clk 0:00:39.2]} 31... Re8 {[%clk 0:00:22.4]} 32. Qh4
{[%clk 0:00:39]} 32... Bxh6 {[%clk 0:00:18.6]} 33. Qxh6 {[%clk 0:00:37.7]} 33...
Nf6 {[%clk 0:00:14.1]} 34. Qf4 {[%clk 0:00:34]} 34... d5 {[%clk 0:00:13.7]} 35.
Rc6 {[%clk 0:00:31.2]} 35... Ne4 {[%clk 0:00:10.6]} 36. Qh6 {[%clk 0:00:25.6]}
36... Nf6 {[%clk 0:00:08.3]} 37. Qg5 {[%clk 0:00:23.7]} 37... Kg7 {[%clk
0:00:07.2]} 38. Rfc1 {[%clk 0:00:22.5]} 38... Rxf2 {[%clk 0:00:06.9]} 39. Rc7
{[%clk 0:00:20.9]} 1-0

[Event "Betsys MČR v online bleskovém šachu 2021"]
[Site "Chess.com"]
[Date "2021.04.17"]
[Round "12"]
[White "dnovotny"]
[Black "jonasstach"]
[Result "1-0"]
[WhiteElo "1735"]
[BlackElo "1979"]
[TimeControl "180+1"]
[EndTime "11:01:12 PDT"]
[Termination "Uživatel dnovotny zvítězil na čas"]

1. e4 {[%clk 0:03:00.9]} 1... e6 {[%clk 0:02:58.9]} 2. d4 {[%clk 0:02:58.2]}
2... d5 {[%clk 0:02:59.4]} 3. exd5 {[%clk 0:02:58.4]} 3... exd5 {[%clk
0:03:00.3]} 4. Nf3 {[%clk 0:02:57.1]} 4... Nf6 {[%clk 0:03:00.9]} 5. Bg5 {[%clk
0:02:49.1]} 5... Be7 {[%clk 0:02:58.1]} 6. Bd3 {[%clk 0:02:47.1]} 6... O-O
{[%clk 0:02:55]} 7. h3 {[%clk 0:02:46.3]} 7... c5 {[%clk 0:02:54.1]} 8. dxc5
{[%clk 0:02:37.2]} 8... Bxc5 {[%clk 0:02:47.6]} 9. Nc3 {[%clk 0:02:32.3]} 9...
Be6 {[%clk 0:02:43.4]} 10. O-O {[%clk 0:02:26]} 10... Nbd7 {[%clk 0:02:42]} 11.
Re1 {[%clk 0:02:25.8]} 11... Qb6 {[%clk 0:02:37.4]} 12. Qd2 {[%clk 0:02:16.6]}
12... Bb4 {[%clk 0:02:20]} 13. a3 {[%clk 0:02:13.1]} 13... Bd6 {[%clk
0:02:17.5]} 14. Na4 {[%clk 0:02:04.2]} 14... Qc7 {[%clk 0:02:15]} 15. Nd4 {[%clk
0:02:01.7]} 15... Rae8 {[%clk 0:01:50.7]} 16. Nb5 {[%clk 0:01:59.8]} 16... Qb8
{[%clk 0:01:51.3]} 17. Nxd6 {[%clk 0:01:57.8]} 17... Qxd6 {[%clk 0:01:52.2]} 18.
Bf4 {[%clk 0:01:56.8]} 18... Qc6 {[%clk 0:01:46.2]} 19. Nc3 {[%clk 0:01:53.3]}
19... a6 {[%clk 0:01:44.5]} 20. b4 {[%clk 0:01:51.8]} 20... Rc8 {[%clk
0:01:41.2]} 21. Ne2 {[%clk 0:01:44.9]} 21... Ne4 {[%clk 0:01:24.7]} 22. Bxe4
{[%clk 0:01:38.5]} 22... dxe4 {[%clk 0:01:25.6]} 23. Nd4 {[%clk 0:01:36.7]}
23... Qd5 {[%clk 0:01:10.4]} 24. Nxe6 {[%clk 0:00:57.3]} 24... Qxe6 {[%clk
0:01:08.6]} 25. Rad1 {[%clk 0:00:56.7]} 25... Nf6 {[%clk 0:01:00.5]} 26. c3
{[%clk 0:00:21.8]} 26... Qc4 {[%clk 0:00:59]} 27. Be5 {[%clk 0:00:18.3]} 27...
Rfe8 {[%clk 0:00:29.9]} 28. Bxf6 {[%clk 0:00:16.8]} 28... gxf6 {[%clk
0:00:30.8]} 29. Qh6 {[%clk 0:00:13.7]} 29... Qxc3 {[%clk 0:00:28.1]} 30. Re3
{[%clk 0:00:13.7]} 30... Qxe3 {[%clk 0:00:16.8]} 31. fxe3 {[%clk 0:00:12.7]}
31... Re6 {[%clk 0:00:16.3]} 32. Rd7 {[%clk 0:00:11.7]} 32... Rc1+ {[%clk
0:00:14.2]} 33. Kh2 {[%clk 0:00:11.4]} 33... f5 {[%clk 0:00:10.7]} 34. Rd8+
{[%clk 0:00:10.8]} 1-0

[Event "Betsys MČR v online bleskovém šachu 2021"]
[Site "Chess.com"]
[Date "2021.04.17"]
[Round "12"]
[White "marfuss"]
[Black "CzechMerlin"]
[Result "1-0"]
[WhiteElo "1952"]
[BlackElo "1659"]
[TimeControl "180+1"]
[EndTime "11:01:12 PDT"]
[Termination "Uživatel marfuss zvítězil matem"]

1. d4 {[%clk 0:03:00.9]} 1... f5 {[%clk 0:02:59]} 2. Bf4 {[%clk 0:02:55.5]} 2...
Nf6 {[%clk 0:02:59.2]} 3. e3 {[%clk 0:02:53.4]} 3... h6 {[%clk 0:02:57.3]} 4. h4
{[%clk 0:02:51]} 4... d6 {[%clk 0:02:53.8]} 5. Nf3 {[%clk 0:02:50.6]} 5... Nc6
{[%clk 0:02:53.4]} 6. c4 {[%clk 0:02:49.4]} 6... e6 {[%clk 0:02:43.1]} 7. Nc3
{[%clk 0:02:39.5]} 7... Qe7 {[%clk 0:02:42.1]} 8. Be2 {[%clk 0:02:35.2]} 8...
Bd7 {[%clk 0:02:42.1]} 9. Qc2 {[%clk 0:02:31.8]} 9... O-O-O {[%clk 0:02:41.9]}
10. O-O-O {[%clk 0:02:31.7]} 10... Ng4 {[%clk 0:02:39.9]} 11. Bg3 {[%clk
0:02:27.1]} 11... e5 {[%clk 0:02:38.1]} 12. dxe5 {[%clk 0:02:18]} 12... dxe5
{[%clk 0:02:32.8]} 13. Nd5 {[%clk 0:02:16.7]} 13... Qe6 {[%clk 0:02:19.5]} 14.
Rd2 {[%clk 0:01:59.8]} 14... Bd6 {[%clk 0:02:18.6]} 15. Rhd1 {[%clk 0:01:56.5]}
15... f4 {[%clk 0:02:04.9]} 16. exf4 {[%clk 0:01:55.7]} 16... exf4 {[%clk
0:02:04.6]} 17. Bxf4 {[%clk 0:01:44.1]} 17... Nxf2 {[%clk 0:01:56.3]} 18. Bxd6
{[%clk 0:01:32.7]} 18... Nxd1 {[%clk 0:01:55.3]} 19. Bxc7 {[%clk 0:01:03.7]}
19... Ne3 {[%clk 0:01:00.4]} 20. Nxe3 {[%clk 0:00:50.7]} 20... Kxc7 {[%clk
0:01:00.2]} 21. Nd5+ {[%clk 0:00:46.9]} 21... Kb8 {[%clk 0:00:59]} 22. Bd3
{[%clk 0:00:37.2]} 22... Rhf8 {[%clk 0:00:48.4]} 23. Re2 {[%clk 0:00:36.9]}
23... Qd6 {[%clk 0:00:33.1]} 24. Qc3 {[%clk 0:00:32.7]} 24... Rde8 {[%clk
0:00:25.4]} 25. Qxg7 {[%clk 0:00:19.6]} 25... Rxe2 {[%clk 0:00:23.8]} 26. Bxe2
{[%clk 0:00:20.5]} 26... Be6 {[%clk 0:00:18.5]} 27. Nc3 {[%clk 0:00:14.5]} 27...
Rd8 {[%clk 0:00:18.2]} 28. Qxh6 {[%clk 0:00:09.7]} 28... Nb4 {[%clk 0:00:17.1]}
29. Qe3 {[%clk 0:00:08.1]} 29... Nd3+ {[%clk 0:00:15.8]} 30. Bxd3 {[%clk
0:00:08.2]} 30... Qxd3 {[%clk 0:00:16]} 31. Qxe6 {[%clk 0:00:07.6]} 31... Qf1+
{[%clk 0:00:14.6]} 32. Kc2 {[%clk 0:00:07.2]} 32... Qf2+ {[%clk 0:00:14.2]} 33.
Kb3 {[%clk 0:00:07.6]} 33... Qxg2 {[%clk 0:00:12.2]} 34. Qe5+ {[%clk 0:00:08]}
34... Ka8 {[%clk 0:00:11.5]} 35. Nd4 {[%clk 0:00:08.5]} 35... Qg8 {[%clk
0:00:09]} 36. Ndb5 {[%clk 0:00:08.4]} 36... Rc8 {[%clk 0:00:09.1]} 37. Nc7+
{[%clk 0:00:08]} 37... Kb8 {[%clk 0:00:08.6]} 38. Na6+ {[%clk 0:00:08.4]} 38...
Ka8 {[%clk 0:00:09]} 39. Qb8+ {[%clk 0:00:09]} 39... Rxb8 {[%clk 0:00:08.7]} 40.
Nc7# {[%clk 0:00:09.7]} 1-0

[Event "Betsys MČR v online bleskovém šachu 2021"]
[Site "Chess.com"]
[Date "2021.04.17"]
[Round "12"]
[White "WhiteLittleHorse"]
[Black "DominikS3"]
[Result "0-1"]
[WhiteElo "970"]
[BlackElo "1343"]
[TimeControl "180+1"]
[EndTime "11:01:12 PDT"]
[Termination "Uživatel DominikS3 zvítězil na čas"]

1. e4 {[%clk 0:03:00.9]} 1... c6 {[%clk 0:02:57.8]} 2. Nf3 {[%clk 0:03:00.7]}
2... d5 {[%clk 0:02:57.4]} 3. exd5 {[%clk 0:02:57.5]} 3... cxd5 {[%clk 0:02:56]}
4. d4 {[%clk 0:02:58]} 4... Nc6 {[%clk 0:02:54.6]} 5. Bf4 {[%clk 0:02:54.1]}
5... Bf5 {[%clk 0:02:53.5]} 6. Nc3 {[%clk 0:02:51]} 6... e6 {[%clk 0:02:52.7]}
7. a3 {[%clk 0:02:49.3]} 7... Nf6 {[%clk 0:02:50.6]} 8. Bb5 {[%clk 0:02:46.1]}
8... a6 {[%clk 0:02:49.2]} 9. Ba4 {[%clk 0:02:45]} 9... b5 {[%clk 0:02:45.6]}
10. Bb3 {[%clk 0:02:42.5]} 10... Rc8 {[%clk 0:02:39.8]} 11. Be5 {[%clk 0:02:25]}
11... Nxe5 {[%clk 0:02:36.8]} 12. Nxe5 {[%clk 0:02:23.8]} 12... Bd6 {[%clk
0:02:18.8]} 13. O-O {[%clk 0:02:13.5]} 13... O-O {[%clk 0:02:14.5]} 14. f4
{[%clk 0:02:03.4]} 14... Qb6 {[%clk 0:01:58.8]} 15. a4 {[%clk 0:01:57.7]} 15...
b4 {[%clk 0:01:56.1]} 16. a5 {[%clk 0:01:53.3]} 16... Qa7 {[%clk 0:01:46.5]} 17.
Na4 {[%clk 0:01:46.8]} 17... Rfd8 {[%clk 0:01:33.3]} 18. Nb6 {[%clk 0:01:42.2]}
18... Rc7 {[%clk 0:01:25.9]} 19. Qd2 {[%clk 0:01:24.8]} 19... Ne4 {[%clk
0:01:20.5]} 20. Qe3 {[%clk 0:01:12.5]} 20... Bxe5 {[%clk 0:01:02.2]} 21. fxe5
{[%clk 0:01:08.7]} 21... Bg6 {[%clk 0:00:58.5]} 22. Rfe1 {[%clk 0:00:38.3]}
22... Rc6 {[%clk 0:00:43.3]} 23. Ba4 {[%clk 0:00:32.7]} 23... Rxb6 {[%clk
0:00:41.5]} 24. axb6 {[%clk 0:00:30.2]} 24... Qxb6 {[%clk 0:00:42.4]} 25. Bb3
{[%clk 0:00:27.9]} 25... Rc8 {[%clk 0:00:37.4]} 26. Rec1 {[%clk 0:00:23.7]}
26... a5 {[%clk 0:00:31.9]} 27. c3 {[%clk 0:00:22.9]} 27... bxc3 {[%clk
0:00:31]} 28. bxc3 {[%clk 0:00:22.2]} 28... Qxb3 {[%clk 0:00:29.7]} 29. Rxa5
{[%clk 0:00:19.4]} 29... h6 {[%clk 0:00:23.6]} 30. h3 {[%clk 0:00:11.2]} 30...
Rxc3 {[%clk 0:00:20]} 31. Ra8+ {[%clk 0:00:08.7]} 31... Kh7 {[%clk 0:00:18.2]}
32. Rxc3 {[%clk 0:00:07.9]} 32... Qxc3 {[%clk 0:00:17]} 33. Qxc3 {[%clk
0:00:07.4]} 33... Nxc3 {[%clk 0:00:17.9]} 34. Rc8 {[%clk 0:00:05.7]} 34... Ne2+
{[%clk 0:00:17.3]} 35. Kh2 {[%clk 0:00:03.2]} 35... Nxd4 {[%clk 0:00:18.2]} 36.
Rc3 {[%clk 0:00:01.5]} 36... Nb5 {[%clk 0:00:16.8]} 0-1

[Event "Betsys MČR v online bleskovém šachu 2021"]
[Site "Chess.com"]
[Date "2021.04.17"]
[Round "12"]
[White "Skalicky"]
[Black "pudltomik"]
[Result "0-1"]
[WhiteElo "670"]
[BlackElo "774"]
[TimeControl "180+1"]
[EndTime "11:01:13 PDT"]
[Termination "Uživatel pudltomik zvítězil na čas"]

1. d4 {[%clk 0:03:00.9]} 1... d5 {[%clk 0:02:58.9]} 2. c4 {[%clk 0:03:00.5]}
2... Bf5 {[%clk 0:02:52.7]} 3. cxd5 {[%clk 0:02:56.8]} 3... Qxd5 {[%clk
0:02:52.1]} 4. Nc3 {[%clk 0:02:55.5]} 4... Qa5 {[%clk 0:02:48.3]} 5. Bd2 {[%clk
0:02:51.4]} 5... Nc6 {[%clk 0:02:46.1]} 6. e3 {[%clk 0:02:46.6]} 6... Nb4 {[%clk
0:02:43.5]} 7. e4 {[%clk 0:02:19.7]} 7... Bg6 {[%clk 0:02:32.7]} 8. a3 {[%clk
0:02:12.6]} 8... Nc6 {[%clk 0:02:20.2]} 9. Nf3 {[%clk 0:02:10.6]} 9... O-O-O
{[%clk 0:02:16]} 10. d5 {[%clk 0:01:57.8]} 10... Nb8 {[%clk 0:02:09]} 11. Be2
{[%clk 0:01:47.6]} 11... f5 {[%clk 0:01:58.4]} 12. exf5 {[%clk 0:01:41.8]} 12...
Bxf5 {[%clk 0:01:56.4]} 13. O-O {[%clk 0:01:41.1]} 13... Qb6 {[%clk 0:01:47.8]}
14. Be3 {[%clk 0:01:09.4]} 14... Qd6 {[%clk 0:01:46.3]} 15. Nd4 {[%clk
0:01:02.5]} 15... Bg6 {[%clk 0:01:39.4]} 16. Ndb5 {[%clk 0:00:53.2]} 16... Qf6
{[%clk 0:01:22.6]} 17. Nxa7+ {[%clk 0:00:44.2]} 17... Kd7 {[%clk 0:01:21.5]} 18.
Nab5 {[%clk 0:00:30.5]} 18... e5 {[%clk 0:01:14.4]} 19. Bg4+ {[%clk 0:00:25.6]}
19... Bf5 {[%clk 0:01:12.6]} 20. Bxf5+ {[%clk 0:00:25.1]} 20... Qxf5 {[%clk
0:01:12.2]} 21. Qf3 {[%clk 0:00:17.8]} 21... Qxf3 {[%clk 0:01:03.6]} 22. gxf3
{[%clk 0:00:17.7]} 22... Be7 {[%clk 0:00:58.8]} 23. f4 {[%clk 0:00:17.5]} 23...
exf4 {[%clk 0:00:55.7]} 24. Bxf4 {[%clk 0:00:17.4]} 24... Ke8 {[%clk 0:00:49.4]}
25. Bxc7 {[%clk 0:00:14.7]} 25... Rc8 {[%clk 0:00:47.6]} 26. Bxb8 {[%clk
0:00:14.1]} 26... Rxb8 {[%clk 0:00:47.4]} 27. Rae1 {[%clk 0:00:13.1]} 27... g6
{[%clk 0:00:45.4]} 28. d6 {[%clk 0:00:13.2]} 28... Kd7 {[%clk 0:00:38.2]} 29.
dxe7 {[%clk 0:00:13.2]} 29... Nxe7 {[%clk 0:00:37.7]} 30. Rd1+ {[%clk
0:00:12.3]} 30... Ke8 {[%clk 0:00:37.1]} 31. Rd3 {[%clk 0:00:11.8]} 31... Rf8
{[%clk 0:00:34.7]} 32. Rfd1 {[%clk 0:00:11.1]} 32... Kf7 {[%clk 0:00:33.7]} 33.
Nd6+ {[%clk 0:00:11]} 33... Kg8 {[%clk 0:00:33]} 34. Rd4 {[%clk 0:00:08.8]}
34... Rbd8 {[%clk 0:00:31.6]} 35. Nde4 {[%clk 0:00:07.1]} 35... Rxd4 {[%clk
0:00:30.5]} 36. Rxd4 {[%clk 0:00:07]} 36... Nc6 {[%clk 0:00:30.1]} 37. Nd6
{[%clk 0:00:06.7]} 37... Nxd4 {[%clk 0:00:28.9]} 38. Nxb7 {[%clk 0:00:06.1]}
38... Nc2 {[%clk 0:00:26.5]} 39. Kg2 {[%clk 0:00:05.6]} 39... Rf5 {[%clk
0:00:23]} 40. Nd6 {[%clk 0:00:04.9]} 40... Rg5+ {[%clk 0:00:22.6]} 41. Kf3
{[%clk 0:00:01.4]} 41... Ne1+ {[%clk 0:00:20.5]} 0-1

[Event "Betsys MČR v online bleskovém šachu 2021"]
[Site "Chess.com"]
[Date "2021.04.17"]
[Round "12"]
[White "reflexia64"]
[Black "Akdub"]
[Result "1-0"]
[WhiteElo "2288"]
[BlackElo "2098"]
[TimeControl "180+1"]
[EndTime "11:01:15 PDT"]
[Termination "Uživatel reflexia64 zvítězil po vzdání soupeře"]

1. b3 {[%clk 0:03:00.9]} 1... Nf6 {[%clk 0:02:58.6]} 2. Bb2 {[%clk 0:03:00.1]}
2... d5 {[%clk 0:02:58.7]} 3. g3 {[%clk 0:02:59.3]} 3... c5 {[%clk 0:02:57.9]}
4. Bg2 {[%clk 0:02:58.7]} 4... Nc6 {[%clk 0:02:58]} 5. e3 {[%clk 0:02:58.3]}
5... Bg4 {[%clk 0:02:46.4]} 6. f3 {[%clk 0:02:56.1]} 6... Bd7 {[%clk 0:02:38.5]}
7. Ne2 {[%clk 0:02:53.8]} 7... e5 {[%clk 0:02:35.7]} 8. O-O {[%clk 0:02:51.9]}
8... Bd6 {[%clk 0:02:35.1]} 9. f4 {[%clk 0:02:50.3]} 9... O-O {[%clk 0:02:29.8]}
10. Nbc3 {[%clk 0:02:46.4]} 10... d4 {[%clk 0:02:27.4]} 11. Nb5 {[%clk
0:02:38.5]} 11... Bb8 {[%clk 0:02:26.1]} 12. a4 {[%clk 0:02:37.5]} 12... exf4
{[%clk 0:02:18.8]} 13. Nxf4 {[%clk 0:02:25.5]} 13... dxe3 {[%clk 0:02:10.9]} 14.
dxe3 {[%clk 0:02:24]} 14... Qe7 {[%clk 0:02:08.5]} 15. Bxf6 {[%clk 0:02:08.1]}
15... gxf6 {[%clk 0:02:02.9]} 16. Qd2 {[%clk 0:01:55.3]} 16... Be5 {[%clk
0:01:52.8]} 17. Rae1 {[%clk 0:01:53.1]} 17... Rad8 {[%clk 0:01:48.8]} 18. Nd5
{[%clk 0:01:50.5]} 18... Qe6 {[%clk 0:01:38.4]} 19. c4 {[%clk 0:01:49.4]} 19...
Bc8 {[%clk 0:01:32.5]} 20. Nbc3 {[%clk 0:01:46.8]} 20... Nb4 {[%clk 0:01:24.3]}
21. Ne4 {[%clk 0:01:29]} 21... b6 {[%clk 0:00:56.4]} 22. Qe2 {[%clk 0:01:17.9]}
22... f5 {[%clk 0:00:48.3]} 23. Ng5 {[%clk 0:01:09.6]} 23... Qh6 {[%clk
0:00:37.2]} 24. Nh3 {[%clk 0:01:07.3]} 24... Nxd5 {[%clk 0:00:34.7]} 25. cxd5
{[%clk 0:01:06.2]} 25... Rfe8 {[%clk 0:00:30.4]} 26. Qf3 {[%clk 0:01:02.7]}
26... Bc3 {[%clk 0:00:24.8]} 27. Nf4 {[%clk 0:00:39.7]} 27... Bxe1 {[%clk
0:00:24.3]} 28. Rxe1 {[%clk 0:00:39.6]} 28... Kh8 {[%clk 0:00:22.3]} 29. Bf1
{[%clk 0:00:37.5]} 29... Qf6 {[%clk 0:00:21]} 30. Bc4 {[%clk 0:00:33.6]} 30...
Qc3 {[%clk 0:00:20.5]} 31. Re2 {[%clk 0:00:30]} 31... Qc1+ {[%clk 0:00:18.5]}
32. Kg2 {[%clk 0:00:28]} 32... a6 {[%clk 0:00:18.8]} 33. Qh5 {[%clk 0:00:25.1]}
33... Qd1 {[%clk 0:00:14.8]} 34. Qxf7 {[%clk 0:00:20.9]} 34... Rf8 {[%clk
0:00:14.5]} 35. Qc7 {[%clk 0:00:16]} 35... Bd7 {[%clk 0:00:13.3]} 36. Qe5+
{[%clk 0:00:10.9]} 36... Kg8 {[%clk 0:00:08.1]} 37. d6+ {[%clk 0:00:10.8]} 37...
Rf7 {[%clk 0:00:06.7]} 38. Bxf7+ {[%clk 0:00:10.8]} 38... Kxf7 {[%clk
0:00:06.1]} 39. Qe7+ {[%clk 0:00:11.2]} 39... Kg8 {[%clk 0:00:05.4]} 40. Qxd8+
{[%clk 0:00:11.2]} 1-0

[Event "Betsys MČR v online bleskovém šachu 2021"]
[Site "Chess.com"]
[Date "2021.04.17"]
[Round "12"]
[White "horalek"]
[Black "kominekmart"]
[Result "1-0"]
[WhiteElo "1343"]
[BlackElo "1534"]
[TimeControl "180+1"]
[EndTime "11:01:16 PDT"]
[Termination "Uživatel horalek zvítězil matem"]

1. e4 {[%clk 0:03:00.9]} 1... d6 {[%clk 0:02:57.8]} 2. Nf3 {[%clk 0:02:57.8]}
2... Nf6 {[%clk 0:02:57.4]} 3. Bc4 {[%clk 0:02:55.4]} 3... g6 {[%clk 0:02:53.2]}
4. O-O {[%clk 0:02:53.6]} 4... Bg7 {[%clk 0:02:52.9]} 5. d3 {[%clk 0:02:51.2]}
5... O-O {[%clk 0:02:51.8]} 6. Nc3 {[%clk 0:02:50.5]} 6... c6 {[%clk 0:02:51.7]}
7. Bg5 {[%clk 0:02:46.6]} 7... b5 {[%clk 0:02:49]} 8. Bb3 {[%clk 0:02:44.7]}
8... e5 {[%clk 0:02:48.1]} 9. Qd2 {[%clk 0:02:37.8]} 9... a5 {[%clk 0:02:46.2]}
10. a3 {[%clk 0:02:36.5]} 10... Nbd7 {[%clk 0:02:39.3]} 11. Bh6 {[%clk
0:02:34.1]} 11... Ng4 {[%clk 0:02:29]} 12. Bxg7 {[%clk 0:02:31.3]} 12... Nc5
{[%clk 0:02:25.8]} 13. Bxf8 {[%clk 0:02:21.4]} 13... Nxb3 {[%clk 0:02:24.6]} 14.
cxb3 {[%clk 0:02:18.3]} 14... Qxf8 {[%clk 0:02:21.7]} 15. h3 {[%clk 0:02:11.1]}
15... Nh6 {[%clk 0:02:19.6]} 16. Ne2 {[%clk 0:02:03.4]} 16... f5 {[%clk
0:02:18.7]} 17. exf5 {[%clk 0:01:59.3]} 17... Bxf5 {[%clk 0:02:11.6]} 18. Rac1
{[%clk 0:01:55.8]} 18... Bd7 {[%clk 0:02:07.2]} 19. Ng3 {[%clk 0:01:45.4]} 19...
Qe7 {[%clk 0:02:02.2]} 20. Qxh6 {[%clk 0:01:42.8]} 20... Rf8 {[%clk 0:01:56.7]}
21. Ng5 {[%clk 0:01:34.8]} 21... Rf5 {[%clk 0:01:47]} 22. h4 {[%clk 0:01:32.6]}
22... Rf4 {[%clk 0:01:32]} 23. N3e4 {[%clk 0:01:21.6]} 23... Rg4 {[%clk
0:01:25.2]} 24. g3 {[%clk 0:01:18.1]} 24... d5 {[%clk 0:01:21]} 25. f3 {[%clk
0:01:08.8]} 25... dxe4 {[%clk 0:01:12.5]} 26. fxg4 {[%clk 0:01:07.5]} 26... Bxg4
{[%clk 0:01:11.7]} 27. Nxe4 {[%clk 0:01:03.3]} 27... Bf5 {[%clk 0:01:02]} 28.
Qg5 {[%clk 0:00:58.9]} 28... Qe6 {[%clk 0:00:45.5]} 29. Qd8+ {[%clk 0:00:51.6]}
29... Kg7 {[%clk 0:00:42.1]} 30. Ng5 {[%clk 0:00:47]} 30... Qxb3 {[%clk
0:00:32]} 31. Qe7+ {[%clk 0:00:42.1]} 31... Kg8 {[%clk 0:00:24.3]} 32. Qxh7+
{[%clk 0:00:39.8]} 32... Kf8 {[%clk 0:00:23.8]} 33. Qh8+ {[%clk 0:00:35.3]}
33... Ke7 {[%clk 0:00:22.8]} 34. Qg7+ {[%clk 0:00:32.6]} 34... Kd8 {[%clk
0:00:20.7]} 35. Qf8+ {[%clk 0:00:27.7]} 35... Kc7 {[%clk 0:00:19.6]} 36. Qc5
{[%clk 0:00:22.5]} 36... Bd7 {[%clk 0:00:11.1]} 37. Ne6+ {[%clk 0:00:19.8]}
37... Kb7 {[%clk 0:00:09.7]} 38. Nd8+ {[%clk 0:00:16.8]} 38... Ka6 {[%clk
0:00:05.1]} 39. Nxc6 {[%clk 0:00:16]} 39... Qxd3 {[%clk 0:00:04.2]} 40. Qa7#
{[%clk 0:00:13.6]} 1-0

[Event "Betsys MČR v online bleskovém šachu 2021"]
[Site "Chess.com"]
[Date "2021.04.17"]
[Round "12"]
[White "Herracek"]
[Black "FormerProdigy"]
[Result "0-1"]
[WhiteElo "2610"]
[BlackElo "2874"]
[TimeControl "180+1"]
[EndTime "11:01:18 PDT"]
[Termination "Uživatel FormerProdigy zvítězil po vzdání soupeře"]

1. c4 {[%clk 0:03:00.9]} 1... e5 {[%clk 0:03:00.1]} 2. g3 {[%clk 0:03:01.3]}
2... c6 {[%clk 0:02:59.4]} 3. Nf3 {[%clk 0:03:00.9]} 3... e4 {[%clk 0:02:59.6]}
4. Nd4 {[%clk 0:03:01.5]} 4... Nf6 {[%clk 0:02:54.1]} 5. Nc3 {[%clk 0:03:00]}
5... Qb6 {[%clk 0:02:51.7]} 6. Nc2 {[%clk 0:02:44.7]} 6... d5 {[%clk 0:02:47.1]}
7. Bg2 {[%clk 0:02:34]} 7... dxc4 {[%clk 0:02:35.6]} 8. Ne3 {[%clk 0:02:33.5]}
8... Be6 {[%clk 0:02:31.9]} 9. Qc2 {[%clk 0:02:07.7]} 9... Nbd7 {[%clk
0:02:29.2]} 10. Nxe4 {[%clk 0:02:06.4]} 10... Nxe4 {[%clk 0:02:30.1]} 11. Qxe4
{[%clk 0:02:06.7]} 11... Nf6 {[%clk 0:02:24.3]} 12. Qf4 {[%clk 0:01:55.7]} 12...
Nd5 {[%clk 0:02:16.3]} 13. Qe5 {[%clk 0:01:07.2]} 13... Qc7 {[%clk 0:01:38]} 14.
Qxc7 {[%clk 0:01:06.4]} 14... Nxc7 {[%clk 0:01:38.9]} 15. O-O {[%clk 0:01:03.9]}
15... Bc5 {[%clk 0:01:35.5]} 16. Rd1 {[%clk 0:00:59.1]} 16... O-O-O {[%clk
0:01:29.4]} 17. d3 {[%clk 0:00:55]} 17... cxd3 {[%clk 0:01:26]} 18. exd3 {[%clk
0:00:54.9]} 18... Nb5 {[%clk 0:01:21.7]} 19. Bd2 {[%clk 0:00:40]} 19... Rxd3
{[%clk 0:00:55.8]} 20. Bf1 {[%clk 0:00:40.1]} 20... Rd6 {[%clk 0:00:55.7]} 21.
Rac1 {[%clk 0:00:22.3]} 21... Nd4 {[%clk 0:00:54]} 22. Kg2 {[%clk 0:00:13.3]}
22... Bb6 {[%clk 0:00:49.5]} 23. Bb4 {[%clk 0:00:12.3]} 23... Rd7 {[%clk
0:00:47.7]} 24. a4 {[%clk 0:00:12.3]} 24... a5 {[%clk 0:00:45.3]} 25. Bc3 {[%clk
0:00:11.9]} 25... Rhd8 {[%clk 0:00:44.2]} 26. Bc4 {[%clk 0:00:11.2]} 26... Kc7
{[%clk 0:00:39.4]} 27. Bxd4 {[%clk 0:00:11]} 27... Rxd4 {[%clk 0:00:36]} 28.
Bxe6 {[%clk 0:00:11.9]} 28... Rxd1 {[%clk 0:00:34.2]} 29. Rxd1 {[%clk
0:00:08.6]} 29... Rxd1 {[%clk 0:00:33.4]} 30. Nxd1 {[%clk 0:00:09.5]} 30... fxe6
{[%clk 0:00:33.7]} 31. Kf3 {[%clk 0:00:09.7]} 31... Bd4 {[%clk 0:00:33.4]} 32.
Ke4 {[%clk 0:00:10.2]} 32... c5 {[%clk 0:00:32.5]} 33. h4 {[%clk 0:00:08.6]}
33... Kc6 {[%clk 0:00:31.3]} 34. b3 {[%clk 0:00:08.5]} 34... b5 {[%clk 0:00:31]}
35. g4 {[%clk 0:00:08.8]} 35... h6 {[%clk 0:00:21.7]} 36. f4 {[%clk 0:00:02.6]}
36... g6 {[%clk 0:00:19.4]} 37. h5 {[%clk 0:00:02]} 37... gxh5 {[%clk
0:00:19.1]} 38. gxh5 {[%clk 0:00:02.1]} 38... bxa4 {[%clk 0:00:19.5]} 39. bxa4
{[%clk 0:00:02.1]} 39... Kd6 {[%clk 0:00:19.3]} 40. f5 {[%clk 0:00:01.4]} 40...
e5 {[%clk 0:00:18.4]} 41. f6 {[%clk 0:00:01.5]} 41... Ke6 {[%clk 0:00:18.6]} 42.
Ne3 {[%clk 0:00:01.5]} 42... Bxe3 {[%clk 0:00:18.3]} 43. f7 {[%clk 0:00:01.4]}
43... Kxf7 {[%clk 0:00:18.4]} 0-1